bitfinex/quotes_ETHUSD_20240915
["timestamp","ask_amount","ask_price","bid_price","bid_amount"]
[1726378226949,4.12263,2425.7,2425.6,1.4094306]
[1726378231333,10.55183,2425.8,2425.6,1.4094306]
[1726378231590,6.42935,2425.8,2425.6,1.4094306]
[1726378232415,10.5518,2425.8,2425.6,1.4094306]
[1726378232638,6.42935,2425.8,2425.6,1.4094306]
[1726378233224,6.42935,2425.8,2425.7,0.33009914]
[1726378233828,4.12235,2425.8,2425.7,0.33009914]
[1726378236577,4.12219,2425.9,2425.7,0.33009914]
[1726378236871,4.12219,2425.9,2425.8,1.4094306]
[1726378237067,2.307,2426.0,2425.8,1.73946828]
[1726378237234,0.86510606,2426.1,2425.8,1.73946828]
[1726378237458,0.86510606,2426.1,2426.0,1.4094306]
[1726378237735,0.86510606,2426.1,2426.0,1.73934538]
[1726378238258,6.4686143,2426.2,2426.0,1.73934538]
[1726378242151,4.1616143,2426.2,2426.0,1.73934538]
[1726378245482,5.02672036,2426.2,2426.0,1.73934538]
[1726378245691,4.1616143,2426.2,2426.0,1.73934538]
[1726378247290,4.1616143,2426.2,2426.0,0.32991478]
[1726378247447,5.44786277,2426.2,2425.8,3.7600306]
[1726378247649,8.2833843,2426.2,2425.9,0.32765665]
[1726378247961,4.1616143,2426.2,2425.8,3.7600306]
[1726378248344,4.1616143,2426.2,2425.9,0.32765665]
[1726378248692,9.15749077,2426.2,2425.8,3.7600306]
[1726378248991,9.14849036,2426.2,2425.9,0.32765665]
[1726378249485,9.14849036,2426.2,2425.8,3.7600306]
[1726378249684,6.49594,2426.1,2425.9,0.32765665]
[1726378251191,0.90502036,2426.2,2426.0,1.4094306]
[1726378251392,0.0399143,2426.2,2426.0,1.4094306]
[1726378251691,0.0399143,2426.2,2426.1,2.61093376]
[1726378254395,0.0399143,2426.2,2426.1,0.32753376]
[1726378260073,6.6570843,2426.2,2426.1,0.32753376]
[1726378261785,7.52219036,2426.2,2426.1,0.32753376]
[1726378263714,12.07308777,2426.2,2426.1,0.32753376]
[1726378263905,13.80761006,2426.2,2426.1,0.32753376]
[1726378264103,13.80761006,2426.2,2425.4,1.4094306]
[1726378264104,4.12233,2425.9,2425.6,1.4094306]
[1726378264308,4.9874922,2425.9,2425.7,0.31692014]
[1726378264511,4.9874922,2425.9,2425.8,1.4094306]
[1726378264898,4.12218,2425.9,2425.8,1.72628928]
[1726378265578,4.9874922,2425.9,2425.8,1.72628928]
[1726378267411,6.27778925,2425.9,2425.8,1.72628928]
[1726378270726,10.39996925,2425.9,2425.8,0.31685868]
[1726378270930,12.89546925,2425.9,2425.8,0.31685868]
[1726378271092,4.12243,2425.8,2425.6,1.4094306]
[1726378271293,4.12243,2425.8,2425.7,0.31720377]
[1726378271696,13.02512096,2425.8,2425.7,0.31720377]
[1726378271988,6.61862,2425.4,2424.9,3.22314611]
[1726378272213,4.12329,2425.3,2424.8,1.4094306]
[1726378272385,4.12366,2425.1,2424.8,1.4094306]
[1726378272714,6.61916,2425.1,2424.8,1.4094306]
[1726378273454,10.74278,2425.1,2424.8,1.4094306]
[1726378273751,6.61914,2425.1,2424.8,1.4094306]
[1726378274355,4.12377,2425.0,2424.8,1.4094306]
[1726378274505,4.1239,2424.9,2424.3,2.359]
[1726378274710,2.4955,2424.7,2424.5,1.4094306]
[1726378275036,6.6194,2424.9,2424.5,1.4094306]
[1726378275240,10.7434,2424.9,2424.7,1.4094306]
[1726378275616,6.6194,2424.9,2424.7,1.4094306]
[1726378276144,6.61915,2425.1,2424.7,1.4094306]
[1726378276306,4.12371,2425.0,2424.9,1.4094306]
[1726378276512,6.61915,2425.1,2424.9,1.4094306]
[1726378276746,4.12365,2425.1,2424.9,1.4094306]
[1726378277112,8.24728,2425.1,2424.9,1.4094306]
[1726378277309,4.12371,2425.0,2424.9,1.4094306]
[1726378277848,6.61921,2425.0,2424.9,1.4094306]
[1726378278848,4.12389,2424.9,2424.7,1.4094306]
[1726378279012,4.12406,2424.8,2424.7,1.4094306]
[1726378279213,4.12389,2424.9,2424.7,1.4094306]
[1726378289922,4.12389,2424.9,2424.5,1.4094306]
[1726378293433,4.12389,2424.9,2424.6,0.31851678]
[1726378295352,4.12389,2424.9,2424.4,3.7684306]
[1726378295672,4.12389,2424.9,2424.7,0.31845526]
[1726378295877,4.12389,2424.9,2424.6,1.4094306]
[1726378296169,8.24788,2424.9,2424.7,0.31845526]
[1726378296327,4.12389,2424.9,2424.7,0.31845526]
[1726378296965,8.24788,2424.9,2424.7,0.31845526]
[1726378297373,4.12389,2424.9,2424.7,0.31845526]
[1726378300241,4.12291342,2424.9,2424.7,0.31845526]
[1726378301279,8.2481,2424.8,2424.7,0.31845526]
[1726378301442,6.47958,2424.5,2424.1,1.4094306]
[1726378302537,6.47958,2424.5,2424.3,1.4094306]
[1726378303889,4.12473,2424.4,2424.1,1.4094306]
[1726378304484,4.12473,2424.4,2424.3,1.4094306]
[1726378307465,4.12498,2424.3,2423.8,2.3037]
[1726378307786,2.355,2424.2,2424.1,1.4094306]
[1726378307950,6.48007,2424.2,2424.1,1.4094306]
[1726378308382,4.12524,2424.1,2423.9,1.4094306]
[1726378311090,4.12499,2424.3,2423.9,1.4094306]
[1726378311091,4.12499,2424.3,2424.0,2.3037]
[1726378311297,8.25001,2424.3,2424.1,1.4094306]
[1726378311498,4.12507,2424.2,2424.1,1.4094306]
[1726378312584,4.12499,2424.3,2424.1,1.4094306]
[1726378312887,8.25003,2424.3,2424.1,1.4094306]
[1726378313494,4.12499,2424.3,2424.1,1.4094306]
[1726378313700,8.25002,2424.3,2424.1,1.4094306]
[1726378314016,4.12482,2424.4,2424.2,0.29856008]
[1726378314239,4.12482,2424.4,2424.3,1.4094306]
[1726378314571,4.12482,2424.4,2424.3,1.70792915]
[1726378316991,3.22037183,2424.7,2424.3,4.01162915]
[1726378317198,12.71190831,2424.9,2424.6,1.4094306]
[1726378317199,14.63431183,2424.9,2424.6,1.4094306]
[1726378317513,14.63431183,2424.9,2424.8,1.4094306]
[1726378317514,6.47894,2424.9,2424.8,1.4094306]
[1726378317899,7.34431183,2424.9,2424.8,1.70762155]
[1726378318105,7.21337118,2424.9,2424.8,1.70762155]
[1726378318407,10.21337118,2424.9,2424.8,1.4094306]
[1726378321332,4.12409,2424.8,2424.6,1.4094306]
[1726378321787,4.12409,2424.8,2424.7,0.29825246]
[1726378327606,4.12409,2424.8,2424.6,1.4094306]
[1726378328014,8.24826,2424.8,2424.6,1.4094306]
[1726378328216,2.4113,2424.6,2424.4,1.4094306]
[1726378328651,2.4113,2424.6,2424.5,0.29817883]
[1726378332941,4.12422,2424.7,2424.5,0.29817883]
[1726378335539,4.98959183,2424.7,2424.5,0.29817883]
[1726378336222,4.12439,2424.6,2424.5,0.29817883]
[1726378337062,4.98976183,2424.6,2424.5,0.29817883]
[1726378344229,0.86537183,2424.6,2424.5,0.29817883]
[1726378344434,5.42219831,2424.7,2424.5,0.29817883]
[1726378344435,4.98960183,2424.7,2424.5,0.29817883]
[1726378345686,9.11392183,2424.7,2424.5,0.29817883]
[1726378345980,4.98960183,2424.7,2424.5,0.29817883]
[1726378346470,0.86537183,2424.6,2424.5,0.29817883]
[1726378346674,4.98960183,2424.7,2424.5,0.29817883]
[1726378346879,0.86537183,2424.6,2424.5,0.29817883]
[1726378349591,9.11392183,2424.7,2424.5,0.29817883]
[1726378350086,0.86537183,2424.6,2424.5,0.29817883]
[1726378357589,9.54651831,2424.7,2424.5,0.29817883]
[1726378357793,0.86661325,2424.6,2424.5,0.29817883]
[1726378358491,9.54650831,2424.7,2424.5,0.29817883]
[1726378358694,0.86671754,2424.6,2424.5,0.29817883]
[1726378359008,9.54650831,2424.7,2424.5,0.29817883]
[1726378359298,1.29796831,2424.6,2424.5,0.29817883]
[1726378360605,5.42219831,2424.7,2424.5,0.29817883]
[1726378360812,1.29796831,2424.6,2424.5,0.29817883]
[1726378372695,0.86727667,2424.6,2424.5,0.29817883]
[1726378384393,0.86727667,2424.6,2424.5,0.71640683]
[1726378386134,1.29796831,2424.7,2424.5,0.71643997]
[1726378386340,1.29796831,2424.7,2424.5,0.29817883]
[1726378386644,1.29796831,2424.7,2424.3,5.5342006]
[1726378386863,0.86708466,2424.5,2424.3,5.5342006]
[1726378387932,0.86708466,2424.5,2424.3,1.4094306]
[1726378398246,0.86708466,2424.5,2424.4,0.29824399]
[1726378410216,5.42252831,2424.5,2424.4,0.29824399]
[1726378410422,5.42252831,2424.5,2424.1,3.7109306]
[1726378410621,0.86734821,2424.3,2424.1,3.7109306]
[1726378410830,0.86734821,2424.3,2424.2,0.29837798]
[1726378411625,0.86734821,2424.4,2424.2,0.29837798]
[1726378411826,7.43784821,2424.3,2424.2,0.29837798]
[1726378412004,7.43784821,2424.3,2424.0,1.4094306]
[1726378412210,7.43784821,2424.3,2424.1,0.29843952]
[1726378413698,7.43784821,2424.3,2424.2,1.4094306]
[1726378414209,7.43784821,2424.3,2424.2,1.70780858]
[1726378414408,3.31294821,2424.3,2424.2,1.70780858]
[1726378414621,9.11711821,2424.4,2424.2,1.70780858]
[1726378414825,0.86734821,2424.3,2424.2,1.70780858]
[1726378418533,9.11706821,2424.4,2424.2,1.70780858]
[1726378419344,4.99218821,2424.4,2424.2,1.70780858]
[1726378419533,0.86734821,2424.3,2424.2,1.70780858]
[1726378419740,4.99218821,2424.4,2424.2,1.70780858]
[1726378427530,7.31138821,2424.4,2424.2,0.29837798]
[1726378427730,7.31138821,2424.4,2424.2,1.70780858]
[1726378428028,7.31138821,2424.4,2424.3,0.29837835]
[1726378428224,7.31138821,2424.4,2424.2,1.4094306]
[1726378428445,7.31138821,2424.4,2424.3,0.29837835]
[1726378428728,7.31138821,2424.4,2424.2,1.4094306]
[1726378428929,7.31138821,2424.4,2424.3,0.29837835]
[1726378429351,7.31138821,2424.4,2424.2,1.4094306]
[1726378429568,7.31138821,2424.4,2424.3,0.29837835]
[1726378430086,3.18654821,2424.4,2424.3,0.29837835]
[1726378430244,3.18654821,2424.4,2424.2,1.4094306]
[1726378430437,3.18654821,2424.4,2424.3,0.29837835]
[1726378430641,3.18654821,2424.4,2424.2,1.4094306]
[1726378430840,3.18654821,2424.4,2424.3,0.29837835]
[1726378431047,0.86734821,2424.4,2424.2,1.4094306]
[1726378431247,0.86734821,2424.5,2424.3,0.29837835]
[1726378431450,0.86734821,2424.5,2424.4,1.4094306]
[1726378431632,0.86734821,2424.5,2424.4,1.70774742]
[1726378437664,7.74164831,2424.6,2424.4,1.70774742]
[1726378437854,0.86671943,2424.5,2424.4,1.70774742]
[1726378441489,0.86671943,2424.5,2424.4,0.29831682]
[1726378441642,0.86671943,2424.5,2423.9,5.6412422]
[1726378441643,4.12489,2424.4,2423.9,3.25834611]
[1726378441844,0.8668288,2424.4,2424.0,1.70797537]
[1726378442064,4.9915688,2424.4,2424.0,1.70797537]
[1726378442462,1.3357053,2424.4,2424.0,1.70797537]
[1726378443683,2.2938,2424.3,2424.0,1.70797537]
[1726378445778,3.1606288,2424.3,2424.0,1.70797537]
[1726378447287,3.1606288,2424.3,2424.1,0.41852409]
[1726378447492,3.1606288,2424.3,2424.2,0.41852409]
[1726378447805,8.74784298,2424.3,2424.2,0.71699311]
[1726378449374,9.71211418,2424.3,2424.2,0.29846902]
[1726378449574,9.71211418,2424.3,2423.9,1.4094306]
[1726378449575,2.2938,2424.1,2423.9,1.4094306]
[1726378449806,6.41955,2423.8,2423.7,0.86414611]
[1726378449997,6.41955,2423.8,2423.4,2.92536917]
[1726378450268,2.2938,2423.8,2423.5,0.41423643]
[1726378450472,6.41963,2423.8,2423.6,0.41423643]
[1726378450674,6.41963,2423.8,2423.7,0.41423643]
[1726378451266,7.69067234,2423.8,2423.7,0.41423643]
[1726378452371,3.56484234,2423.8,2423.7,0.41423643]
[1726378452571,4.12574,2423.9,2423.7,0.41423643]
[1726378452773,4.12574,2423.9,2423.6,1.4094306]
[1726378453069,4.12574,2423.9,2423.7,0.41421159]
[1726378453281,4.12574,2423.9,2423.6,1.4094306]
[1726378453700,4.12574,2423.9,2423.7,0.4142088]
[1726378453988,5.29514279,2423.9,2423.6,1.4094306]
[1726378454208,5.29514279,2423.9,2423.7,0.41422018]
[1726378454411,5.29514279,2423.9,2423.6,1.4094306]
[1726378454627,5.29514279,2423.9,2423.7,0.41421849]
[1726378454799,5.29514279,2423.9,2423.6,1.4094306]
[1726378455156,5.29514279,2423.9,2423.7,0.41422025]
[1726378455425,5.29514279,2423.9,2423.6,1.4094306]
[1726378455622,5.29514279,2423.9,2423.7,0.41421513]
[1726378455789,5.29514279,2423.9,2423.6,1.4094306]
[1726378455988,6.41922,2424.0,2423.8,1.4094306]
[1726378456889,6.41922,2424.0,2423.7,1.4094306]
[1726378457622,4.12562,2423.9,2423.6,1.4094306]
[1726378457828,5.26678551,2423.9,2423.7,0.41421482]
[1726378458016,5.26678551,2423.9,2423.6,1.4094306]
[1726378458332,5.26678551,2423.9,2423.7,0.29896617]
[1726378461328,4.12562,2423.9,2423.7,0.29896617]
[1726378477078,2.2938,2424.0,2423.8,1.4094306]
[1726378477275,4.12511,2424.2,2423.8,3.7212306]
[1726378477472,11.56144507,2424.3,2424.0,1.4094306]
[1726378477624,4.1251,2424.2,2424.0,1.4094306]
[1726378477829,4.1251,2424.2,2424.1,0.29871633]
[1726378478059,4.1251,2424.2,2424.0,1.4094306]
[1726378478663,5.27196824,2424.2,2424.1,0.29871633]
[1726378482768,6.13905331,2424.2,2424.1,0.29871633]
[1726378483874,3.31138507,2424.3,2424.1,0.29871633]
[1726378488471,7.43628507,2424.3,2424.1,0.29871633]
[1726378490478,0.86708507,2424.2,2424.1,0.29871633]
[1726378494762,11.99215831,2424.3,2424.1,0.29871633]
[1726378495399,7.86716831,2424.3,2424.1,0.29871633]
[1726378495888,0.86674137,2424.2,2424.1,0.29871633]
[1726378496698,11.99217831,2424.3,2424.1,0.29871633]
[1726378497001,1.29796831,2424.2,2424.1,0.29871633]
[1726378497503,5.42303831,2424.2,2424.1,0.29871633]
[1726378499784,4.1253,2424.1,2423.8,1.4094306]
[1726378499991,4.9920991,2424.1,2423.8,1.4094306]
[1726378500399,0.8667991,2424.0,2423.8,1.4094306]
[1726378502627,4.9922191,2424.0,2423.8,1.4094306]
[1726378503427,4.9922191,2424.0,2423.9,0.29880666]
[1726378510448,0.8667991,2424.0,2423.9,0.29880666]
[1726378510748,0.8667991,2424.1,2423.9,0.29880666]
[1726378511063,0.8667991,2424.1,2424.0,3.6906306]
[1726378511410,0.8667991,2424.1,2424.0,3.98937571]
[1726378512425,0.8667991,2424.1,2424.0,1.70817571]
[1726378520150,0.8671579,2424.1,2424.0,1.70817571]
[1726378520358,2.74040737,2424.1,2424.0,0.29874511]
[1726378520566,9.15774737,2424.1,2424.0,0.29874511]
[1726378520717,9.15774737,2424.1,2423.8,1.4094306]
[1726378520718,9.59040347,2424.1,2423.8,1.4094306]
[1726378520933,7.85977906,2424.1,2424.0,0.29869044]
[1726378521469,4.12542,2424.0,2423.8,1.4094306]
[1726378521675,4.99288659,2423.9,2423.6,2.23800088]
[1726378521843,7.28498659,2423.9,2423.6,0.82857028]
[1726378522050,0.86730659,2423.8,2423.6,0.82857028]
[1726378523281,7.28498659,2423.9,2423.6,0.82857028]
[1726378523586,0.86730659,2423.8,2423.6,0.82857028]
[1726378523741,0.86730659,2423.8,2423.6,2.23800088]
[1726378524366,3.15940659,2423.9,2423.6,2.23800088]
[1726378528788,0.86730659,2423.9,2423.6,2.23800088]
[1726378528949,0.86730659,2423.9,2423.6,4.70790088]
[1726378529844,0.86730659,2423.9,2423.6,3.8793306]
[1726378531185,0.86730659,2423.9,2423.8,3.8793306]
[1726378531349,4.99272659,2424.0,2423.8,3.8793306]
[1726378533463,4.99272659,2424.0,2423.9,0.37730372]
[1726378533664,0.86730659,2424.0,2423.9,0.37730372]
[1726378541104,0.86730659,2424.1,2423.9,0.37730372]
[1726378541288,0.86730659,2424.1,2424.0,1.4094306]
[1726378541597,0.86718705,2424.1,2424.0,1.78663309]
[1726378541899,1.30095989,2424.2,2424.0,1.78663309]
[1726378542078,0.86719312,2424.1,2424.0,0.37720249]
[1726378542461,0.86719312,2424.1,2423.8,3.8793306]
[1726378542700,0.86719312,2424.1,2424.0,0.37720249]
[1726378542908,0.86719312,2424.1,2423.9,0.37726728]
[1726378543107,0.86719312,2424.1,2424.0,0.37720249]
[1726378543907,0.86719312,2424.1,2423.8,3.8793306]
[1726378544063,0.86719312,2424.1,2424.0,0.37720249]
[1726378544264,0.86719312,2424.1,2423.9,0.37726728]
[1726378544503,0.86719312,2424.1,2423.8,3.8793306]
[1726378544689,0.86719312,2424.1,2424.0,0.37720249]
[1726378545201,0.86719312,2424.1,2423.8,3.8793306]
[1726378545405,0.86719312,2424.1,2423.9,0.37726728]
[1726378551818,3.27559312,2424.1,2423.9,0.37726728]
[1726378552587,4.31882186,2424.1,2423.9,0.37726728]
[1726378552789,7.40095567,2424.0,2423.7,0.66352026]
[1726378553020,0.86714567,2423.9,2423.8,0.37730294]
[1726378553522,0.86714567,2423.9,2423.5,5.5355706]
[1726378554113,0.86714567,2423.9,2423.6,0.37743255]
[1726378560388,0.86714567,2423.8,2423.6,0.37743255]
[1726378560723,0.86714567,2423.9,2423.6,0.37743255]
[1726378561227,0.86714567,2423.9,2423.7,0.41476221]
[1726378561525,0.86714567,2423.9,2423.8,0.37730294]
[1726378561902,0.86714567,2423.9,2423.5,5.5355706]
[1726378562098,0.86714567,2423.9,2423.8,0.37730294]
[1726378562299,6.55288354,2423.9,2423.5,1.4094306]
[1726378562637,0.86703187,2423.9,2423.6,0.41474624]
[1726378562925,0.86703187,2423.8,2423.7,0.41474624]
[1726378563100,0.86703187,2423.8,2423.5,1.4094306]
[1726378563300,0.86703187,2423.8,2423.7,0.79216341]
[1726378563506,0.86703187,2423.8,2423.7,0.41472284]
[1726378563684,3.25043187,2423.8,2423.7,0.79216341]
[1726378564125,2.3834,2423.8,2423.7,0.79216341]
[1726378566189,2.3834,2423.8,2423.7,0.37744057]
[1726378566402,2.3834,2423.8,2423.7,0.41471335]
[1726378566623,2.3834,2423.8,2423.7,0.79215392]
[1726378569927,2.3834,2423.8,2423.7,0.37744057]
[1726378570130,2.3834,2423.8,2423.7,0.79215623]
[1726378570306,2.3834,2423.8,2423.7,0.41471566]
[1726378570510,2.3834,2423.8,2423.7,0.79215623]
[1726378570717,3.25043187,2423.8,2423.7,0.79215623]
[1726378571228,2.3834,2423.8,2423.7,0.79215623]
[1726378571392,4.99263187,2423.9,2423.7,0.79215623]
[1726378571593,4.99263187,2423.9,2423.7,0.37744057]
[1726378571806,4.99263187,2423.9,2423.5,1.4094306]
[1726378572000,4.99263187,2423.9,2423.6,0.7922241]
[1726378572214,4.99263187,2423.9,2423.7,0.41471872]
[1726378572412,4.99263187,2423.9,2423.8,0.37737578]
[1726378572604,4.99263187,2423.9,2423.5,1.4094306]
[1726378572818,4.99263187,2423.9,2423.6,0.79222444]
[1726378573024,4.99263187,2423.9,2423.7,0.41471906]
[1726378573335,4.99263187,2423.9,2423.6,0.37750538]
[1726378573567,4.99263187,2423.9,2423.8,0.37737578]
[1726378573722,4.99263187,2423.9,2423.7,0.37744057]
[1726378573929,4.99263187,2423.9,2423.7,0.41471586]
[1726378574141,4.99263187,2423.9,2423.8,0.37737578]
[1726378574830,4.99263187,2423.9,2423.5,1.4094306]
[1726378575031,4.99263187,2423.9,2423.6,0.79221851]
[1726378575244,4.99263187,2423.9,2423.7,0.41471313]
[1726378575435,4.99263187,2423.9,2423.6,0.37750538]
[1726378575760,4.99263187,2423.9,2423.8,0.37737578]
[1726378575945,4.99263187,2423.9,2423.7,0.41471106]
[1726378575946,4.99263187,2423.9,2423.7,0.37744057]
[1726378576131,5.84808154,2423.9,2423.8,0.37737578]
[1726378576337,4.98104967,2423.9,2423.8,0.37737578]
[1726378576533,4.98104967,2423.9,2423.4,3.8659306]
[1726378576850,3.25032148,2423.8,2423.5,0.41472592]
[1726378577035,3.25032148,2423.8,2423.6,0.41472592]
[1726378577359,3.25032148,2423.8,2423.7,0.41472592]
[1726378578267,3.25032148,2423.8,2423.7,0.79215923]
[1726378580031,3.25032148,2423.8,2423.7,0.79215937]
[1726378580656,0.86692148,2423.8,2423.7,0.79215937]
[1726378581264,7.88456989,2424.0,2423.7,7.21617937]
[1726378581265,0.86692148,2424.0,2423.7,7.21617937]
[1726378581561,0.86692148,2424.0,2423.8,1.82415666]
[1726378581773,0.86692148,2424.1,2423.9,0.41472606]
[1726378581950,0.86692148,2424.1,2423.9,0.37730372]
[1726378583974,0.86692148,2424.0,2423.9,0.37730372]
[1726378584273,0.86692148,2424.0,2423.9,0.7919442]
[1726378584429,0.86692148,2424.1,2423.9,0.7919442]
[1726378584625,0.86692148,2424.1,2423.9,0.37730372]
[1726378590736,0.86692148,2424.0,2423.9,0.37730372]
[1726378590927,0.86692148,2424.0,2423.9,0.79194218]
[1726378593777,0.86692148,2424.0,2423.9,0.37730372]
[1726378593991,0.86692148,2424.0,2423.9,0.79193671]
[1726378597074,0.86692148,2424.0,2423.9,0.37730372]
[1726378597466,0.86692148,2424.0,2423.9,0.79193506]
[1726378598982,0.86692148,2424.0,2423.9,0.79193846]
[1726378600291,0.86692148,2424.0,2423.9,0.79093859]
[1726378601154,0.86692148,2424.0,2423.9,0.37630385]
[1726378601759,0.86692148,2424.0,2423.9,0.79086951]
[1726378605764,0.86692148,2424.0,2423.9,0.37630385]
[1726378605964,0.86692148,2424.0,2423.9,0.79090593]
[1726378606268,0.86692148,2424.1,2423.9,0.79090593]
[1726378606469,0.86692148,2424.0,2423.9,0.79090593]
[1726378606768,0.86692148,2424.0,2423.9,1.20550244]
[1726378608497,0.86692148,2424.0,2423.9,0.79090625]
[1726378609006,0.86692148,2424.0,2423.9,1.20550439]
[1726378610700,0.86692148,2424.0,2423.9,0.79090199]
[1726378616282,0.86692148,2424.1,2423.9,3.12260199]
[1726378616603,0.86692148,2424.1,2424.0,0.41459814]
[1726378616769,5.42603989,2424.2,2424.0,0.41459814]
[1726378616965,5.42603989,2424.2,2424.0,0.3771546]
[1726378617166,1.30095989,2424.1,2424.0,0.3771546]
[1726378617405,5.42603989,2424.2,2424.0,0.3771546]
[1726378617736,0.86714731,2424.2,2424.1,4.12524]
[1726378618039,1.73062441,2424.5,2424.0,10.0371952]
[1726378618040,0.86714731,2424.4,2424.0,10.0371952]
[1726378618196,0.86714731,2424.4,2424.2,1.4094306]
[1726378618520,0.86714731,2424.4,2424.3,0.37682279]
[1726378618909,0.86714731,2424.4,2424.2,1.4094306]
[1726378619104,0.86714731,2424.4,2424.3,0.37682279]
[1726378619409,0.86714731,2424.4,2424.2,1.4094306]
[1726378619607,0.86714731,2424.4,2424.3,0.37682279]
[1726378620334,0.86714731,2424.4,2424.2,1.4094306]
[1726378620534,0.86714731,2424.4,2424.3,0.37682279]
[1726378620736,0.86714731,2424.4,2424.2,1.4094306]
[1726378621037,0.86714731,2424.4,2424.3,0.37682279]
[1726378621739,0.86714731,2424.4,2424.2,1.4094306]
[1726378621902,0.86714731,2424.4,2424.3,0.37682279]
[1726378622220,0.86714731,2424.4,2424.2,1.4094306]
[1726378622429,0.86714731,2424.4,2424.3,0.37682279]
[1726378622804,0.86714731,2424.4,2424.2,1.4094306]
[1726378623009,0.86714731,2424.4,2424.3,0.37682279]
[1726378623372,0.86714731,2424.4,2424.2,1.4094306]
[1726378623662,0.86714731,2424.4,2424.3,0.37682279]
[1726378624219,0.86714731,2424.4,2424.2,1.4094306]
[1726378624436,0.86714731,2424.4,2424.3,0.37682279]
[1726378624621,3.18074731,2424.4,2424.3,0.37682279]
[1726378625147,3.18074731,2424.4,2424.2,1.4094306]
[1726378625504,3.18074731,2424.4,2424.3,0.37671715]
[1726378625848,3.18074731,2424.4,2424.2,1.4094306]
[1726378626146,3.18074731,2424.4,2424.3,0.37671715]
[1726378626317,3.18074731,2424.4,2424.2,1.4094306]
[1726378626520,3.18074731,2424.4,2424.3,0.37671715]
[1726378626840,4.04136703,2424.4,2424.3,0.37671715]
[1726378627011,4.04136703,2424.4,2424.2,1.4094306]
[1726378627343,4.04136703,2424.4,2424.3,0.37671715]
[1726378627556,3.17421972,2424.4,2424.3,0.37671715]
[1726378627758,4.04136703,2424.4,2424.2,1.4094306]
[1726378627949,4.04136703,2424.4,2424.3,0.37671715]
[1726378628325,4.04136703,2424.4,2424.2,1.4094306]
[1726378628526,0.86714731,2424.4,2424.3,0.37671715]
[1726378628853,0.86714731,2424.4,2424.2,1.4094306]
[1726378629055,0.86714731,2424.4,2424.3,0.37666617]
[1726378629429,0.86714731,2424.4,2424.2,1.4094306]
[1726378629850,4.99171731,2424.5,2424.3,0.37666617]
[1726378630070,6.43785647,2424.5,2424.3,0.37666617]
[1726378630270,6.43785647,2424.5,2424.2,1.4094306]
[1726378630487,6.43785647,2424.5,2424.4,0.3766014]
[1726378630661,6.43785647,2424.5,2424.3,0.37666617]
[1726378630849,6.43785647,2424.5,2424.4,0.3766014]
[1726378631292,6.43785647,2424.5,2424.2,1.4094306]
[1726378631484,4.12457,2424.5,2424.4,0.3766014]
[1726378631651,4.12457,2424.5,2424.3,0.37666617]
[1726378631852,4.99078883,2424.5,2424.4,0.3766014]
[1726378632060,6.35021326,2424.5,2424.4,0.3766014]
[1726378633047,6.35021326,2424.5,2424.2,1.4094306]
[1726378633275,6.35021326,2424.5,2424.4,0.3766014]
[1726378633469,6.35021326,2424.5,2424.3,0.37666617]
[1726378633700,6.35021326,2424.5,2424.4,0.3766014]
[1726378634050,6.35021326,2424.5,2424.2,1.4094306]
[1726378634389,6.35021326,2424.5,2424.3,0.37666617]
[1726378634687,6.35021326,2424.5,2424.2,1.4094306]
[1726378634895,4.99078883,2424.5,2424.4,0.3766014]
[1726378635192,4.99078883,2424.5,2424.3,0.37666617]
[1726378635497,4.99078883,2424.5,2424.2,1.4094306]
[1726378635697,4.99078883,2424.5,2424.4,0.3766014]
[1726378635864,4.99078883,2424.5,2424.3,0.37666617]
[1726378636257,4.99078883,2424.5,2424.2,1.4094306]
[1726378636458,4.99078883,2424.5,2424.4,0.3766014]
[1726378636679,6.43683514,2424.5,2424.3,0.37666617]
[1726378636882,6.43683514,2424.5,2424.4,0.3766014]
[1726378637603,6.43683514,2424.5,2424.2,1.4094306]
[1726378637797,1.4175885,2424.4,2424.2,1.4094306]
[1726378638304,1.4175885,2424.4,2424.3,0.37666617]
[1726378638511,1.4175885,2424.4,2424.2,1.4094306]
[1726378638922,1.4175885,2424.4,2424.3,0.37666617]
[1726378639097,1.4175885,2424.4,2424.2,1.4094306]
[1726378639442,1.4175885,2424.4,2424.3,0.37666617]
[1726378639795,1.4175885,2424.4,2424.2,1.4094306]
[1726378640025,0.86621883,2424.5,2424.3,0.37666617]
[1726378640531,0.86621883,2424.5,2424.4,0.3766014]
[1726378640835,0.86621883,2424.5,2424.2,1.4094306]
[1726378641042,0.86052587,2424.4,2424.2,1.4094306]
[1726378642220,0.86052587,2424.4,2424.0,3.7411306]
[1726378647549,2.3472,2424.3,2424.0,1.4094306]
[1726378653384,2.3472,2424.3,2424.1,0.37680665]
[1726378653681,3.29716346,2424.3,2424.1,0.37680665]
[1726378655281,4.16338229,2424.3,2424.1,0.37680665]
[1726378657394,8.28837229,2424.3,2424.1,0.37680665]
[1726378660383,0.86621883,2424.2,2424.1,0.37680665]
[1726378660583,8.28837229,2424.3,2424.1,0.37680665]
[1726378660893,1.45745881,2424.2,2424.1,0.37680665]
[1726378661056,2.32367764,2424.2,2424.1,0.37680665]
[1726378667791,1.45745881,2424.2,2424.1,0.37680665]
[1726378668381,2.32480748,2424.2,2424.1,0.37680665]
[1726378668589,1.45745881,2424.2,2424.1,0.37680665]
[1726378669383,2.32478249,2424.2,2424.1,0.37680665]
[1726378677811,2.32472271,2424.2,2424.1,0.37680665]
[1726378678019,1.45745881,2424.2,2424.1,0.37680665]
[1726378678384,2.32471972,2424.2,2424.1,0.37680665]
[1726378678681,1.45745881,2424.2,2424.1,0.37680665]
[1726378678926,2.32470629,2424.2,2424.1,0.37680665]
[1726378679123,1.45745881,2424.2,2424.1,0.37680665]
[1726378679329,2.32471048,2424.2,2424.1,0.37680665]
[1726378680278,0.86725167,2424.2,2424.1,0.37680665]
[1726378680881,0.86725167,2424.3,2424.1,0.37680665]
[1726378681105,0.86725167,2424.3,2424.2,1.4094306]
[1726378681518,0.86725167,2424.3,2424.2,1.78620526]
[1726378688106,0.86725167,2424.3,2424.2,0.37677466]
[1726378688313,1.91116727,2424.3,2424.2,0.37677466]
[1726378688508,1.91116727,2424.3,2424.0,3.8550306]
[1726378688707,5.42569989,2424.4,2424.2,0.37673459]
[1726378689010,0.86731053,2424.3,2424.1,0.37679937]
[1726378689216,0.86731053,2424.3,2424.0,3.8550306]
[1726378689416,0.86731053,2424.3,2424.2,0.37673459]
[1726378689719,0.86731053,2424.3,2424.0,3.8550306]
[1726378689919,0.86731053,2424.3,2424.2,0.37673459]
[1726378690124,0.86731053,2424.3,2424.1,0.37679937]
[1726378690307,0.86731053,2424.3,2424.2,0.37673459]
[1726378690707,0.86731053,2424.3,2424.0,3.8550306]
[1726378690909,0.86731053,2424.3,2424.2,0.37673459]
[1726378691549,0.86731053,2424.3,2424.0,3.8550306]
[1726378691702,0.86731053,2424.3,2424.2,0.37673459]
[1726378692146,0.86731053,2424.3,2424.0,3.8550306]
[1726378692473,0.86731053,2424.2,2424.1,0.37679937]
[1726378692624,0.86731053,2424.3,2424.1,0.37679937]